[Event "41st Arco Open 2019"]
[Site "Arco"]
[Date "2019.10.06"]
[Round "3"]
[White "Schroeder, Wilfried"]
[Black "Sorcinelli, Francesco"]
[Result "1-0"]
[ECO "E63"]
[WhiteElo "2195"]
[BlackElo "2065"]
[Annotator "ChessBase"]
[PlyCount "121"]
[EventDate "2019.10.04"]
[EventType "swiss"]
[EventCountry "ITA"]
[SourceTitle "playchess.com"]
[Source "ChessBase"]
[SourceQuality "1"]
[TimeControl "40/5400+30:1800+30"]

1. d4 {[%emt 0:00:30]} Nf6 {[%emt 0:00:30]} 2. Nf3 {[%emt 0:00:00]} g6 {[%emt 0:00:00]} 3. c4 {[%emt 0:00:00]} Bg7 {[%emt 0:00:00]} 4. g3 {[%emt 0:00:30]} O-O 5. Bg2 {[%emt 0:00:30]} d6 {[%emt 0:00:00]} 6. O-O {[%emt 0:00:00]} Nc6 {[%emt 0:00:30]} 7. Nc3 {[%emt 0:00:00]} a6 {[%emt 0:00:00]} 8. d5 {[%emt 0:00:00]} Na5 {[%emt 0:00:00]} 9. b3 {[%emt 0:02:00]} Nxd5 {[%emt 0:28:30]} 10. Nxd5 {[%emt 0:00:30]} Bxa1 {[%emt 0:25:30]} 11. Bd2 {[%emt 0:01:30]} Nxc4 {[%emt 0:00:00]} 12. Bg5 {[%emt 0:14:30]} Bf6 {[%emt 0:13:00]} 13. Bxf6 {[%emt 0:05:30]} exf6 {[%emt 0:00:30]} 14. bxc4 {[%emt 0:00:30]} c6 {[%emt 0:02:30]} 15. Nc3 Be6 {[%emt 0:00:30]} 16. Qd4 {[%emt 0:08:00]} f5 {[%emt 0:06:30]} 17. e4 {[%emt 0:11:30]} f6 {[%emt 0:01:56]} 18. exf5 {[%emt 0:01:30]} Bxf5 19. g4 {[%emt 0:07:30]} Be6 {[%emt 0:00:00]} 20. Re1 {[%emt 0:36:20]} Qd7 {[%emt 0:10:54]} 21. Ne4 {[%emt 0:00:00]} Bxg4 {[%emt 0:00:11]} 22. Nxf6+ {[%emt 0:00:00]} Rxf6 {[%emt 0:00:04]} 23. Qxf6 {[%emt 0:00:00]} Rf8 {[%emt 0:00:33]} 24. Qh4 {[%emt 0:00:00]} Qf5 {[%emt 0:06:57]} 25. Nd2 Qf4 {[%emt 0:02:55]} 26. Ne4 {[%emt 0:00:00]} d5 {[%emt 0:00:00]} 27. cxd5 {[%emt 0:00:00]} cxd5 {[%emt 0:01:15]} 28. Ng5 {[%emt 0:12:31]} h5 {[%emt 0:00:36]} 29. Bxd5+ {[%emt 0:00:00]} Kh8 {[%emt 0:00:23]} 30. Re3 {[%emt 0:00:00]} Qd4 {[%emt 0:00:35]} 31. Bf3 {[%emt 0:00:00]} Qa1+ {[%emt 0:00:30]} 32. Kg2 {[%emt 0:00:00]} Bxf3+ {[%emt 0:00:34]} 33. Nxf3 {[%emt 0:00:00]} Qxa2 {[%emt 0:00:33]} 34. Qd4+ {[%emt 0:00:00]} Kg8 {[%emt 0:00:30]} 35. Re7 {[%emt 0:00:00]} Rf7 {[%emt 0:00:09]} 36. Re8+ {[%emt 0:00:00]} Rf8 {[%emt 0:00:00]} 37. Rxf8+ {[%emt 0:00:00]} Kxf8 38. Qd6+ {[%emt 0:00:00]} Kg7 {[%emt 0:01:40]} 39. Qe5+ Kf8 {[%emt 0:00:09]} 40. Qb8+ {[%emt 0:00:16]} Kg7 {[%emt 0:00:51]} 41. Qxb7+ {[%emt 0:30:09]} Kg8 {[%emt 0:30:41]} 42. Qb8+ {[%emt 0:00:36]} Kg7 {[%emt 0:00:19]} 43. Qe5+ {[%emt 0:00:43]} Kg8 {[%emt 0:00:41]} 44. Qf6 {[%emt 0:00:38]} Qb1 {[%emt 0:00:30]} 45. Qxa6 Qe4 {[%emt 0:00:04]} 46. Qf6 {[%emt 0:02:58]} Qg4+ 47. Kh1 {[%emt 0:00:56]} Qe4 {[%emt 0:01:00]} 48. h3 Qb1+ {[%emt 0:00:56]} 49. Kg2 {[%emt 0:00:00]} Qe4 {[%emt 0:00:04]} 50. Kg3 {[%emt 0:00:00]} Qd3 {[%emt 0:00:00]} 51. Qe6+ {[%emt 0:00:00]} Kg7 {[%emt 0:01:15]} 52. Kg2 {[%emt 0:00:00]} Qd8 {[%emt 0:00:00]} 53. Qe5+ {[%emt 0:00:00]} Kh6 {[%emt 0:00:00]} 54. h4 {[%emt 0:00:00]} Qc8 {[%emt 0:00:00]} 55. Qg5+ {[%emt 0:00:00]} Kg7 {[%emt 0:02:00]} 56. Qf4 {[%emt 0:00:00]} Qb7 57. Kg3 {[%emt 0:00:00]} Qb1 {[%emt 0:01:11]} 58. Qe5+ Kg8 {[%emt 0:00:30]} 59. Qd5+ {[%emt 0:00:00]} Kg7 {[%emt 0:00:19]} 60. Kg2 {[%emt 0:00:00]} Kh6 {[%emt 0:00:00]} 61. Qg8 {[%emt 0:00:00]} 1-0

[Event "41st Arco Open 2019"]
[Site "Arco"]
[Date "2019.10.06"]
[Round "3"]
[White "Dobboletta, Alex"]
[Black "Petrov, Nikita"]
[Result "0-1"]
[ECO "A88"]
[WhiteElo "2190"]
[BlackElo "2586"]
[Annotator "ChessBase"]
[PlyCount "58"]
[EventDate "2019.10.04"]
[EventType "swiss"]
[EventCountry "ITA"]
[SourceTitle "playchess.com"]
[Source "ChessBase"]
[SourceQuality "1"]
[TimeControl "40/5400+30:1800+30"]

1. d4 {[%emt 0:03:30]} f5 {[%emt 0:00:30]} 2. c4 {[%emt 0:00:30]} Nf6 {[%emt 0:04:30]} 3. Nf3 {[%emt 0:01:30]} g6 {[%emt 0:00:00]} 4. g3 {[%emt 0:00:30]} Bg7 5. Bg2 {[%emt 0:00:30]} O-O {[%emt 0:00:00]} 6. O-O d6 {[%emt 0:00:00]} 7. Nc3 {[%emt 0:01:00]} c6 {[%emt 0:00:00]} 8. Rb1 {[%emt 0:00:00]} a5 {[%emt 0:00:00]} 9. Qc2 {[%emt 0:04:00]} Na6 {[%emt 0:03:30]} 10. a3 Qe8 {[%emt 0:05:30]} 11. Rd1 {[%emt 0:16:00]} e5 {[%emt 0:11:30]} 12. b4 {[%emt 0:05:30]} axb4 {[%emt 0:09:30]} 13. axb4 {[%emt 0:01:30]} e4 14. Ng5 {[%emt 0:02:30]} h6 {[%emt 0:10:00]} 15. Nh3 g5 {[%emt 0:00:30]} 16. f3 {[%emt 0:11:00]} Nc7 {[%emt 0:23:30]} 17. Nf2 e3 {[%emt 0:02:30]} 18. Nd3 {[%emt 0:03:00]} f4 {[%emt 0:01:30]} 19. gxf4 {[%emt 0:00:30]} Bf5 {[%emt 0:06:30]} 20. fxg5 {[%emt 0:07:30]} hxg5 {[%emt 0:00:00]} 21. Qb3 {[%emt 0:01:30]} g4 {[%emt 0:06:30]} 22. Rb2 {[%emt 0:07:30]} Bh6 {[%emt 0:00:30]} 23. Ne4 {[%emt 0:13:30]} Nxe4 {[%emt 0:02:29]} 24. fxe4 {[%emt 0:00:30]} Bxe4 {[%emt 0:00:02]} 25. Ne1 {[%emt 0:00:30]} Qf7 {[%emt 0:00:00]} 26. Bxe3 {[%emt 0:00:30]} Rae8 {[%emt 0:06:04]} 27. d5 {[%emt 0:13:29]} Bxg2 {[%emt 0:01:24]} 28. Nxg2 {[%emt 0:00:00]} Bxe3+ {[%emt 0:00:00]} 29. Nxe3 {[%emt 0:00:00]} Qf2+ {[%emt 0:00:14]} 0-1

[Event "41st Arco Open 2019"]
[Site "Arco"]
[Date "2019.10.06"]
[Round "3"]
[White "Van den Bersselaar, Jeroen"]
[Black "Horvath, Csaba"]
[Result "0-1"]
[ECO "A14"]
[WhiteElo "2175"]
[BlackElo "2503"]
[Annotator "ChessBase"]
[PlyCount "52"]
[EventDate "2019.10.04"]
[EventType "swiss"]
[EventCountry "ITA"]
[SourceTitle "playchess.com"]
[Source "ChessBase"]
[SourceQuality "1"]
[TimeControl "40/5400+30:1800+30"]

1. Nf3 {[%emt 0:00:30]} Nf6 {[%emt 0:03:30]} 2. c4 {[%emt 0:00:00]} b6 {[%emt 0:00:00]} 3. g3 {[%emt 0:01:00]} Bb7 {[%emt 0:02:00]} 4. Bg2 {[%emt 0:00:30]} e6 5. O-O {[%emt 0:00:30]} Be7 {[%emt 0:05:00]} 6. Nc3 O-O {[%emt 0:00:30]} 7. b3 {[%emt 0:04:00]} d5 {[%emt 0:07:30]} 8. cxd5 {[%emt 0:12:30]} Nxd5 {[%emt 0:00:30]} 9. Bb2 {[%emt 0:00:00]} c5 {[%emt 0:02:30]} 10. Nxd5 {[%emt 0:00:00]} Bxd5 {[%emt 0:03:30]} 11. Qb1 {[%emt 0:08:30]} Nd7 12. e4 {[%emt 0:14:30]} Bb7 {[%emt 0:00:00]} 13. Rd1 {[%emt 0:03:30]} Qc7 14. d4 {[%emt 0:02:30]} Nf6 {[%emt 0:00:00]} 15. Ne5 Rfd8 {[%emt 0:00:00]} 16. Nc4 {[%emt 0:07:00]} b5 {[%emt 0:39:00]} 17. Ne3 cxd4 {[%emt 0:00:30]} 18. Rxd4 {[%emt 0:03:00]} Rxd4 19. Bxd4 {[%emt 0:00:00]} Rd8 {[%emt 0:04:00]} 20. Bb2 {[%emt 0:01:00]} Qc8 21. a4 {[%emt 0:05:30]} Qa8 {[%emt 0:13:16]} 22. axb5 {[%emt 0:22:01]} Nxe4 {[%emt 0:04:45]} 23. Ra4 {[%emt 0:00:00]} Nd2 {[%emt 0:01:06]} 24. Qc2 {[%emt 0:00:00]} Bxg2 {[%emt 0:01:05]} 25. Nxg2 {[%emt 0:00:00]} Nf3+ {[%emt 0:00:10]} 26. Kh1 {[%emt 0:00:00]} Rd2 {[%emt 0:04:02]} 0-1

[Event "41st Arco Open 2019"]
[Site "Arco"]
[Date "2019.10.06"]
[Round "3"]
[White "Schulz, Michael"]
[Black "Favaloro, Andrea"]
[Result "0-1"]
[ECO "D00"]
[WhiteElo "2174"]
[BlackElo "2338"]
[Annotator "ChessBase"]
[PlyCount "62"]
[EventDate "2019.10.04"]
[EventType "swiss"]
[EventCountry "ITA"]
[SourceTitle "playchess.com"]
[Source "ChessBase"]
[SourceQuality "1"]
[TimeControl "40/5400+30:1800+30"]

1. d4 {[%emt 0:00:30]} d5 {[%emt 0:00:30]} 2. Bf4 {[%emt 0:00:00]} Nf6 {[%emt 0:00:00]} 3. e3 {[%emt 0:00:00]} e6 {[%emt 0:00:00]} 4. Nd2 {[%emt 0:01:30]} Bd6 5. Bg3 {[%emt 0:00:30]} O-O {[%emt 0:01:00]} 6. Bd3 c5 {[%emt 0:00:30]} 7. c3 {[%emt 0:00:00]} Qc7 {[%emt 0:00:30]} 8. dxc5 {[%emt 0:00:30]} Qxc5 {[%emt 0:00:30]} 9. Ngf3 {[%emt 0:04:30]} Re8 {[%emt 0:00:30]} 10. Bxd6 {[%emt 0:00:30]} Qxd6 {[%emt 0:00:30]} 11. Nc4 {[%emt 0:02:30]} Qc7 {[%emt 0:00:30]} 12. Nce5 {[%emt 0:00:30]} Nc6 {[%emt 0:04:30]} 13. Nxc6 {[%emt 0:00:30]} bxc6 {[%emt 0:00:30]} 14. g4 {[%emt 0:09:30]} e5 {[%emt 0:04:30]} 15. g5 {[%emt 0:00:00]} Nd7 {[%emt 0:00:30]} 16. Be2 {[%emt 0:13:00]} Nc5 {[%emt 0:08:30]} 17. h4 {[%emt 0:09:30]} Bg4 {[%emt 0:02:30]} 18. Ng1 {[%emt 0:04:30]} Bf5 19. Nf3 {[%emt 0:05:30]} Rab8 {[%emt 0:08:00]} 20. b4 {[%emt 0:03:30]} Ne4 21. Rc1 {[%emt 0:00:00]} Rbd8 {[%emt 0:04:00]} 22. Kf1 {[%emt 0:00:00]} Qe7 {[%emt 0:01:30]} 23. Kg2 {[%emt 0:10:30]} f6 {[%emt 0:00:30]} 24. g6 {[%emt 0:01:30]} Bxg6 {[%emt 0:03:30]} 25. h5 {[%emt 0:01:30]} Bf7 26. Nh4 {[%emt 0:01:30]} f5 {[%emt 0:04:00]} 27. Nxf5 {[%emt 0:00:30]} Qf6 28. Bg4 {[%emt 0:00:30]} Be6 {[%emt 0:02:00]} 29. f3 Bxf5 {[%emt 0:00:30]} 30. Bxf5 {[%emt 0:01:00]} Qxf5 {[%emt 0:01:30]} 31. fxe4 {[%emt 0:00:30]} Qg5+ {[%emt 0:01:30]} 0-1

[Event "41st Arco Open 2019"]
[Site "Arco"]
[Date "2019.10.06"]
[Round "3"]
[White "Leutwyler, Martin"]
[Black "Curien, Nicolas"]
[Result "1-0"]
[ECO "D07"]
[WhiteElo "2154"]
[BlackElo "2261"]
[Annotator "RC"]
[PlyCount "151"]
[EventDate "2019.10.04"]
[EventType "swiss"]
[EventCountry "ITA"]
[SourceTitle "playchess.com"]
[Source "ChessBase"]
[SourceQuality "1"]
[TimeControl "40/5400+30:1800+30"]

1. d4 {[%emt 0:00:30]} d5 {[%emt 0:00:30]} 2. c4 {[%emt 0:00:00]} Nc6 {[%emt 0:00:00]} 3. Nf3 {[%emt 0:00:00]} Bg4 {[%emt 0:00:00]} 4. Nc3 {[%emt 0:00:00]} e6 5. cxd5 {[%emt 0:01:00]} exd5 {[%emt 0:01:00]} 6. Qb3 {[%emt 0:18:30]} Bxf3 {[%emt 0:18:30]} 7. exf3 {[%emt 0:00:00]} Bb4 {[%emt 0:10:30]} 8. Bb5 {[%emt 0:00:00]} Bxc3+ {[%emt 0:01:30]} 9. bxc3 {[%emt 0:03:30]} Nge7 {[%emt 0:00:30]} 10. Ba3 {[%emt 0:05:30]} O-O {[%emt 0:00:30]} 11. O-O {[%emt 0:05:30]} Re8 {[%emt 0:01:30]} 12. Rfe1 {[%emt 0:01:30]} a6 {[%emt 0:07:30]} 13. Bxe7 {[%emt 0:06:30]} Rxe7 {[%emt 0:00:30]} 14. Bxc6 {[%emt 0:00:00]} bxc6 {[%emt 0:00:30]} 15. Rxe7 {[%emt 0:00:00]} Qxe7 {[%emt 0:00:00]} 16. Qb7 {[%emt 0:03:30]} Re8 {[%emt 0:00:00]} 17. Qxa6 {[%emt 0:04:30]} c5 {[%emt 0:08:30]} 18. g3 {[%emt 0:04:30]} h5 {[%emt 0:11:30]} 19. Kg2 {[%emt 0:16:30]} cxd4 {[%emt 0:08:30]} 20. cxd4 {[%emt 0:00:30]} c5 {[%emt 0:00:00]} 21. dxc5 {[%emt 0:04:30]} Qxc5 {[%emt 0:01:00]} 22. Qd3 {[%emt 0:00:30]} h4 {[%emt 0:02:30]} 23. Qd2 {[%emt 0:03:30]} Qc4 {[%emt 0:08:19]} 24. Rc1 {[%emt 0:03:19]} Qb5 {[%emt 0:04:41]} 25. Qd4 {[%emt 0:08:17]} Qe2 {[%emt 0:04:06]} 26. Qxh4 {[%emt 0:00:00]} Qxa2 {[%emt 0:00:19]} 27. Qd4 {[%emt 0:00:49]} Qb3 {[%emt 0:02:46]} 28. Rc5 {[%emt 0:02:33]} Rd8 {[%emt 0:00:17]} 29. Rc7 {[%emt 0:00:18]} Qb5 {[%emt 0:00:00]} 30. Rc5 {[%emt 0:00:59]} Qb7 {[%emt 0:01:58]} 31. h4 {[%emt 0:00:52]} Qd7 {[%emt 0:00:11]} 32. Ra5 {[%emt 0:00:34]} Qe6 {[%emt 0:01:07]} 33. Rb5 {[%emt 0:01:03]} Qd6 {[%emt 0:00:22]} 34. Rb6 {[%emt 0:00:06]} Qc7 {[%emt 0:00:14]} 35. h5 {[%emt 0:01:12]} Rd6 {[%emt 0:01:32]} 36. Rb5 {[%emt 0:00:50]} Qd8 {[%emt 0:03:09]} 37. g4 {[%emt 0:02:46]} Rd7 {[%emt 0:00:07]} 38. Qb2 {[%emt 0:02:20]} Qe7 {[%emt 0:03:51]} 39. Qd4 {[%emt 0:02:01]} Qd8 {[%emt 0:00:00]} 40. Qb2 {[%emt 0:00:00]} Qe7 {[%emt 0:01:00]} 41. Rb4 {[%emt 0:07:01]} Rd8 {[%emt 0:22:59]} 42. Qd4 {[%emt 0:00:30]} Rd7 {[%emt 0:04:40]} 43. Rb3 {[%emt 0:00:00]} Qd8 {[%emt 0:00:53]} 44. Qe5 {[%emt 0:01:00]} Rd6 {[%emt 0:00:00]} 45. Qd4 {[%emt 0:00:30]} Rd7 {[%emt 0:00:37]} 46. Re3 {[%emt 0:00:30]} Rd6 {[%emt 0:00:00]} 47. Re5 {[%emt 0:05:30]} f6 {[%emt 0:00:00]} 48. Re1 {[%emt 0:00:00]} Rd7 {[%emt 0:01:30]} 49. Rb1 {[%emt 0:00:00]} Qc7 {[%emt 0:00:00]} 50. Rd1 {[%emt 0:01:30]} Qe5 {[%emt 0:00:00]} 51. f4 {[%emt 0:00:30]} Qe2 {[%emt 0:00:00]} 52. Kg3 {[%emt 0:04:47]} f5 {[%emt 0:00:00]} 53. f3 {[%emt 0:00:00]} fxg4 {[%emt 0:00:00]} 54. fxg4 {[%emt 0:00:00]} Qe6 {[%emt 0:00:06]} 55. Rd3 {[%emt 0:05:30]} Qe1+ {[%emt 0:00:00]} 56. Qf2 {[%emt 0:00:00]} Qc1 {[%emt 0:00:00]} 57. Qe3 {[%emt 0:00:00]} Qxe3+ {[%emt 0:00:00]} 58. Rxe3 Kf7 {[%emt 0:00:00]} 59. Kf3 {[%emt 0:00:00]} Ra7 {[%emt 0:00:00]} 60. Rb3 {[%emt 0:00:00]} Kf6 {[%emt 0:00:59]} 61. Ke3 {[%emt 0:06:28]} Ra1 {[%emt 0:01:32]} 62. Rb6+ {[%emt 0:00:00]} Kf7 {[%emt 0:00:00]} 63. h6 {[%emt 0:00:00]} gxh6 {[%emt 0:03:12]} 64. Rxh6 {[%emt 0:05:10]} Ke7 {[%emt 0:01:58]} 65. g5 {[%emt 0:00:00]} Ra4 {[%emt 0:00:00]} 66. f5 {[%emt 0:00:00]} Rg4 {[%emt 0:01:08]} 67. Re6+ {[%emt 0:01:50]} Kd7 {[%emt 0:00:42]} 68. g6 {[%emt 0:00:00]} d4+ {[%emt 0:00:00]} 69. Kd3 {[%emt 0:00:00]} Rg5 {[%emt 0:01:53]} 70. Rf6 {[%emt 0:02:34]} Rg4 {[%emt 0:00:00]} 71. Rf7+ {[%emt 0:00:00]} Ke8 {[%emt 0:00:00]} 72. Kc4 {[%emt 0:00:00]} Rf4 {[%emt 0:03:53]} 73. f6 {[%emt 0:03:48]} Rg4 {[%emt 0:00:00]} 74. Re7+ {[%emt 0:00:00]} Kf8 {[%emt 0:00:00]} 75. g7+ {[%emt 0:00:00]} Kg8 {[%emt 0:01:31]} 76. Re8+ {[%emt 0:00:00]} 1-0

[Event "41st Arco Open 2019"]
[Site "Arco"]
[Date "2019.10.06"]
[Round "3"]
[White "Heidel, Andre Nicolas"]
[Black "Dittmar, Peter"]
[Result "1-0"]
[ECO "A46"]
[WhiteElo "2140"]
[BlackElo "2253"]
[Annotator "ChessBase"]
[PlyCount "108"]
[EventDate "2019.10.04"]
[EventType "swiss"]
[EventCountry "ITA"]
[SourceTitle "playchess.com"]
[Source "ChessBase"]
[SourceQuality "1"]
[TimeControl "40/5400+30:1800+30"]

1. d4 {[%emt 0:00:30]} Nf6 {[%emt 0:00:30]} 2. Nf3 {[%emt 0:00:00]} e6 {[%emt 0:00:00]} 3. g3 {[%emt 0:00:00]} b5 {[%emt 0:00:00]} 4. Bg2 {[%emt 0:00:00]} Bb7 5. O-O {[%emt 0:00:00]} c5 {[%emt 0:01:00]} 6. Bf4 {[%emt 0:08:30]} cxd4 {[%emt 0:00:30]} 7. Nxd4 {[%emt 0:02:30]} Bxg2 {[%emt 0:01:30]} 8. Kxg2 Qb6 {[%emt 0:02:30]} 9. a4 {[%emt 0:06:00]} bxa4 {[%emt 0:03:30]} 10. Nc3 {[%emt 0:03:30]} Nc6 {[%emt 0:03:30]} 11. Ndb5 {[%emt 0:06:30]} e5 12. Bg5 {[%emt 0:01:30]} Nb4 {[%emt 0:47:00]} 13. Bxf6 {[%emt 0:33:30]} gxf6 {[%emt 0:02:30]} 14. e4 {[%emt 0:00:00]} Rc8 {[%emt 0:08:30]} 15. Qd2 {[%emt 0:00:00]} a6 {[%emt 0:09:05]} 16. Na3 {[%emt 0:00:00]} Qc6 {[%emt 0:00:00]} 17. Rad1 {[%emt 0:11:00]} h5 {[%emt 0:02:02]} 18. f4 h4 {[%emt 0:00:30]} 19. gxh4 {[%emt 0:12:58]} Rxh4 {[%emt 0:05:19]} 20. Rf3 {[%emt 0:00:30]} Bh6 {[%emt 0:04:12]} 21. Ne2 {[%emt 0:03:41]} Bxf4 {[%emt 0:03:39]} 22. Nxf4 {[%emt 0:01:02]} Rxf4 {[%emt 0:00:07]} 23. Rxf4 {[%emt 0:00:49]} exf4 {[%emt 0:00:03]} 24. Qxb4 {[%emt 0:00:36]} Qe6 25. Qd4 {[%emt 0:03:44]} Qg4+ {[%emt 0:00:56]} 26. Kf2 Qh3 {[%emt 0:02:12]} 27. Kg1 {[%emt 0:03:41]} Qg4+ {[%emt 0:00:00]} 28. Kf1 {[%emt 0:00:39]} Qf3+ {[%emt 0:00:22]} 29. Ke1 Qh1+ {[%emt 0:02:13]} 30. Kd2 {[%emt 0:00:17]} Qxh2+ 31. Kc1 {[%emt 0:00:05]} Qh3 {[%emt 0:00:00]} 32. Qxf6 Qe3+ {[%emt 0:01:23]} 33. Kb1 {[%emt 0:01:25]} Rc6 34. Qh8+ {[%emt 0:01:19]} Ke7 {[%emt 0:00:27]} 35. e5 Qg3 {[%emt 0:02:05]} 36. Qb8 {[%emt 0:01:54]} Qg4 {[%emt 0:00:00]} 37. Qb4+ {[%emt 0:00:18]} Kd8 {[%emt 0:01:41]} 38. Rh1 {[%emt 0:00:59]} Kc7 {[%emt 0:00:11]} 39. Qxa4 {[%emt 0:01:13]} Qg2 {[%emt 0:01:26]} 40. Qa5+ {[%emt 0:00:43]} Kb7 {[%emt 0:00:00]} 41. Rd1 {[%emt 0:02:07]} Qg4 {[%emt 0:26:00]} 42. Qb4+ {[%emt 0:04:30]} Kc7 {[%emt 0:04:34]} 43. Qd4 {[%emt 0:00:30]} Qf5 {[%emt 0:00:00]} 44. Rf1 {[%emt 0:02:30]} f3 {[%emt 0:00:00]} 45. Qe3 {[%emt 0:01:30]} f6 {[%emt 0:00:00]} 46. Rxf3 {[%emt 0:01:30]} Qxe5 {[%emt 0:00:00]} 47. Qa7+ {[%emt 0:01:30]} Kd8 {[%emt 0:02:49]} 48. Qa8+ Ke7 {[%emt 0:00:00]} 49. Qg8 {[%emt 0:01:11]} Qg5 50. Qh7+ {[%emt 0:00:36]} Kd8 {[%emt 0:01:30]} 51. Rd3 {[%emt 0:01:13]} Qg1+ {[%emt 0:00:30]} 52. Ka2 {[%emt 0:00:06]} Qg4 {[%emt 0:00:00]} 53. Qh8+ Kc7 {[%emt 0:00:41]} 54. Rb3 {[%emt 0:01:18]} Kd6 {[%emt 0:00:30]} 1-0

[Event "41st Arco Open 2019"]
[Site "Arco"]
[Date "2019.10.06"]
[Round "3"]
[White "zum Felde, Michael"]
[Black "Scheftlein, Richard"]
[Result "1/2-1/2"]
[ECO "B17"]
[WhiteElo "2139"]
[BlackElo "2236"]
[Annotator "NA"]
[PlyCount "32"]
[EventDate "2019.10.04"]
[EventType "swiss"]
[EventCountry "ITA"]
[SourceTitle "playchess.com"]
[Source "ChessBase"]
[SourceQuality "1"]
[TimeControl "40/5400+30:1800+30"]

1. e4 {[%emt 0:00:30]} c6 {[%emt 0:00:30]} 2. d4 {[%emt 0:00:30]} d5 {[%emt 0:01:30]} 3. Nd2 {[%emt 0:01:30]} dxe4 {[%emt 0:00:00]} 4. Nxe4 {[%emt 0:00:00]} Nd7 {[%emt 0:00:00]} 5. Nf3 {[%emt 0:02:00]} Ngf6 {[%emt 0:00:00]} 6. Ng3 {[%emt 0:00:00]} e6 {[%emt 0:00:00]} 7. Be2 {[%emt 0:02:00]} Bd6 {[%emt 0:00:30]} 8. Qd3 Qc7 {[%emt 0:03:30]} 9. Ng5 {[%emt 0:17:00]} h6 {[%emt 0:07:30]} 10. N5e4 {[%emt 0:00:30]} Be7 {[%emt 0:00:30]} 11. Nxf6+ {[%emt 0:03:30]} Nxf6 12. Ne4 {[%emt 0:00:00]} b6 {[%emt 0:01:00]} 13. c3 Bb7 {[%emt 0:00:30]} 14. O-O {[%emt 0:08:30]} Rd8 {[%emt 0:04:30]} 15. Qg3 Qxg3 {[%emt 0:00:30]} 16. Nxf6+ {[%emt 0:02:00]} Bxf6 {[%emt 0:00:30]} 1/2-1/2

[Event "41st Arco Open 2019"]
[Site "Arco"]
[Date "2019.10.06"]
[Round "3"]
[White "Klings, Peter"]
[Black "Vezzosi, Paolo"]
[Result "0-1"]
[ECO "B31"]
[WhiteElo "2116"]
[BlackElo "2235"]
[Annotator "ChessBase"]
[PlyCount "80"]
[EventDate "2019.10.04"]
[EventType "swiss"]
[EventCountry "ITA"]
[SourceTitle "playchess.com"]
[Source "ChessBase"]
[SourceQuality "1"]
[TimeControl "40/5400+30:1800+30"]

1. e4 {[%emt 0:00:30]} c5 {[%emt 0:00:30]} 2. Nf3 {[%emt 0:00:00]} Nc6 {[%emt 0:00:00]} 3. Bb5 {[%emt 0:00:00]} Nf6 {[%emt 0:00:00]} 4. e5 {[%emt 0:05:30]} Nd5 5. O-O {[%emt 0:00:00]} g6 {[%emt 0:04:00]} 6. Re1 {[%emt 0:00:00]} Bg7 {[%emt 0:00:30]} 7. Nc3 {[%emt 0:00:30]} Nc7 {[%emt 0:00:30]} 8. Bxc6 {[%emt 0:00:00]} dxc6 {[%emt 0:00:00]} 9. Ne4 {[%emt 0:01:00]} Ne6 {[%emt 0:01:00]} 10. d3 {[%emt 0:02:30]} b6 {[%emt 0:00:30]} 11. Be3 {[%emt 0:08:30]} Qc7 {[%emt 0:03:30]} 12. Qd2 {[%emt 0:05:30]} Bxe5 {[%emt 0:12:30]} 13. Nxe5 {[%emt 0:02:30]} Qxe5 14. Bh6 {[%emt 0:12:30]} Bd7 {[%emt 0:14:00]} 15. a4 Rg8 {[%emt 0:00:30]} 16. c3 {[%emt 0:12:00]} O-O-O {[%emt 0:29:30]} 17. Ng5 Qf5 {[%emt 0:01:30]} 18. a5 {[%emt 0:18:00]} b5 {[%emt 0:03:30]} 19. a6 {[%emt 0:00:30]} Nxg5 {[%emt 0:02:30]} 20. Bxg5 {[%emt 0:00:30]} Be6 {[%emt 0:00:00]} 21. d4 {[%emt 0:04:30]} Rd7 {[%emt 0:04:00]} 22. Bf4 {[%emt 0:07:03]} f6 {[%emt 0:00:30]} 23. Qe3 {[%emt 0:09:56]} Bd5 {[%emt 0:04:47]} 24. h3 h5 {[%emt 0:01:48]} 25. Bh2 {[%emt 0:03:10]} h4 {[%emt 0:09:11]} 26. dxc5 {[%emt 0:00:37]} g5 {[%emt 0:00:00]} 27. f3 {[%emt 0:00:00]} e5 {[%emt 0:00:00]} 28. Rad1 {[%emt 0:02:47]} Rgd8 {[%emt 0:06:29]} 29. Kh1 {[%emt 0:03:42]} Bb3 {[%emt 0:00:00]} 30. Rxd7 {[%emt 0:00:00]} Rxd7 {[%emt 0:00:00]} 31. Bg1 {[%emt 0:00:50]} Rd3 {[%emt 0:01:19]} 32. Qe2 {[%emt 0:00:29]} Bc4 {[%emt 0:00:00]} 33. Qf2 {[%emt 0:00:00]} Qd7 {[%emt 0:00:00]} 34. Qc2 {[%emt 0:01:26]} Be6 {[%emt 0:00:00]} 35. Re2 {[%emt 0:02:08]} Kc7 {[%emt 0:00:23]} 36. Re3 {[%emt 0:00:00]} Rd2 {[%emt 0:00:40]} 37. Qg6 {[%emt 0:00:24]} Bxh3 {[%emt 0:04:02]} 38. Bh2 {[%emt 0:01:07]} Bxg2+ {[%emt 0:00:00]} 39. Kg1 {[%emt 0:00:00]} Bxf3 {[%emt 0:00:09]} 40. Rxf3 {[%emt 0:01:10]} Qg4+ {[%emt 0:00:30]} 0-1

[Event "41st Arco Open 2019"]
[Site "Arco"]
[Date "2019.10.06"]
[Round "3"]
[White "Cardili, Mariano"]
[Black "Qendro, Llambi"]
[Result "1/2-1/2"]
[ECO "A42"]
[WhiteElo "2079"]
[BlackElo "2312"]
[Annotator "ChessBase"]
[PlyCount "58"]
[EventDate "2019.10.04"]
[EventType "swiss"]
[EventCountry "ITA"]
[SourceTitle "playchess.com"]
[Source "ChessBase"]
[SourceQuality "1"]
[TimeControl "40/5400+30:1800+30"]

1. d4 {[%emt 0:00:30]} g6 {[%emt 0:00:30]} 2. c4 {[%emt 0:00:00]} Bg7 {[%emt 0:00:00]} 3. Nc3 {[%emt 0:00:00]} d6 {[%emt 0:00:00]} 4. e4 {[%emt 0:00:30]} e5 5. Nf3 {[%emt 0:01:30]} exd4 {[%emt 0:03:00]} 6. Nxd4 {[%emt 0:01:30]} Nc6 {[%emt 0:00:30]} 7. Be3 {[%emt 0:00:30]} Nge7 {[%emt 0:00:30]} 8. Be2 {[%emt 0:02:30]} O-O {[%emt 0:00:30]} 9. O-O {[%emt 0:00:30]} f5 {[%emt 0:00:30]} 10. exf5 {[%emt 0:08:30]} Bxd4 {[%emt 0:02:30]} 11. Bxd4 {[%emt 0:02:30]} Nxf5 12. Be3 {[%emt 0:01:30]} Nxe3 {[%emt 0:01:00]} 13. fxe3 {[%emt 0:00:00]} Rxf1+ {[%emt 0:04:30]} 14. Qxf1 {[%emt 0:04:00]} Be6 {[%emt 0:01:30]} 15. Qf4 {[%emt 0:00:30]} Qe7 {[%emt 0:02:30]} 16. Bf3 {[%emt 0:19:30]} Rf8 {[%emt 0:26:30]} 17. Qe4 {[%emt 0:00:30]} Ne5 {[%emt 0:00:00]} 18. Be2 {[%emt 0:17:30]} b6 {[%emt 0:00:00]} 19. Rf1 {[%emt 0:02:30]} Rxf1+ {[%emt 0:00:00]} 20. Bxf1 {[%emt 0:00:00]} Kg7 {[%emt 0:00:00]} 21. Be2 {[%emt 0:02:00]} a5 {[%emt 0:06:30]} 22. Nb5 {[%emt 0:06:30]} Bf5 {[%emt 0:13:30]} 23. Qf4 {[%emt 0:04:30]} Bd3 24. Bxd3 {[%emt 0:02:30]} Nxd3 {[%emt 0:04:00]} 25. Qd4+ {[%emt 0:00:30]} Ne5 {[%emt 0:00:00]} 26. Nc3 {[%emt 0:01:30]} Qf7 {[%emt 0:13:00]} 27. Nd5 {[%emt 0:06:23]} g5 {[%emt 0:07:23]} 28. b3 {[%emt 0:00:00]} Qf5 {[%emt 0:00:44]} 29. e4 {[%emt 0:01:14]} Qg4 {[%emt 0:04:42]} 1/2-1/2